fUSD/lending_fUSD_20240104
["ID","MTS","AMOUNT","RATE_DAILY","PERIOD"]
[310180399,1704390671541,-500.0,0.00034246,2]
[310180400,1704390671552,-500.0,0.00034246,2]
[310180401,1704390671563,-500.0,0.00034246,2]
[310180402,1704390671573,-565.26921508,0.00034246,2]
[310180403,1704390671583,-500.0,0.00034246,2]
[310180404,1704390671594,-500.0,0.00034246,2]
[310180405,1704390671605,-500.0,0.00034246,2]
[310180406,1704390671617,-981.17,0.00034246,2]
[310180407,1704390671626,-181.8,0.00034246,2]
[310180408,1704390671637,-500.0,0.00034246,2]
[310180409,1704390671647,-500.0,0.00034246,2]
[310180410,1704390671659,-500.0,0.00034246,2]
[310180411,1704390671670,-500.0,0.00034246,2]
[310180412,1704390671684,-500.0,0.00034246,2]
[310180413,1704390671694,-500.0,0.00034246,2]
[310180414,1704390671704,-500.0,0.00034246,2]
[310180415,1704390671715,-500.0,0.00034246,2]
[310180416,1704390671726,-500.0,0.00034246,2]
[310180417,1704390671736,-500.0,0.00034246,2]
[310180418,1704390671746,-500.0,0.00034246,2]
[310180419,1704390671758,-500.0,0.00034246,2]
[310180420,1704390671768,-500.0,0.00034246,2]
[310180421,1704390671779,-500.0,0.00034246,2]
[310180422,1704390671789,-500.0,0.00034246,2]
[310180423,1704390671800,-500.0,0.00034246,2]
[310180424,1704390671810,-500.0,0.00034246,2]
[310180425,1704390671820,-500.0,0.00034246,2]
[310180426,1704390671835,-500.0,0.00034246,2]
[310180427,1704390671845,-500.0,0.00034246,2]
[310180428,1704390671855,-245.21596377,0.00034246,2]
[310180429,1704390671865,-500.0,0.00034246,2]
[310180430,1704390671876,-500.0,0.00034246,2]
[310180431,1704390671886,-500.0,0.00034246,2]
[310180432,1704390671897,-500.0,0.00034246,2]
[310180433,1704390671908,-500.0,0.00034246,2]
[310180434,1704390671919,-500.0,0.00034246,2]
[310180435,1704390671930,-584.15,0.00034246,2]
[310180436,1704390671941,-500.0,0.00034246,2]
[310180437,1704390671952,-521.08,0.00034246,2]
[310180438,1704390671964,-500.0,0.00034246,2]
[310180439,1704390671976,-500.0,0.00034246,2]
[310180440,1704390671987,-500.0,0.00034246,2]
[310180441,1704390671997,-500.0,0.00034246,2]
[310180442,1704390672008,-579.94,0.00034246,2]
[310180443,1704390672019,-500.0,0.00034246,2]
[310180444,1704390672030,-239.20815675,0.00034246,2]
[310180445,1704390672042,-500.0,0.00034246,2]
[310180446,1704390672053,-500.0,0.00034246,2]
[310180447,1704390672063,-500.0,0.00034246,2]
[310180448,1704390672074,-500.0,0.00034246,2]
[310180449,1704390672084,-500.0,0.00034246,2]
[310180450,1704390672095,-524.52833102,0.00034246,2]
[310180451,1704390672106,-500.0,0.00034246,2]
[310180452,1704390672117,-475.55,0.00034246,2]
[310180453,1704390672131,-500.0,0.00034246,2]
[310180454,1704390672142,-500.0,0.00034246,2]
[310180455,1704390672152,-500.0,0.00034246,2]
[310180456,1704390672163,-500.0,0.00034246,2]
[310180457,1704390672176,-500.0,0.00034246,2]
[310180458,1704390672186,-500.0,0.00034246,2]
[310180459,1704390672196,-500.0,0.00034246,2]
[310180460,1704390672207,-500.0,0.00034246,2]
[310180461,1704390672218,-500.0,0.00034246,2]
[310180462,1704390672228,-500.0,0.00034246,2]
[310180463,1704390672240,-250.72,0.00034246,2]
[310180464,1704390672250,-500.0,0.00034246,2]
[310180465,1704390672261,-500.0,0.00034246,2]
[310180466,1704390672272,-150.0,0.00034246,2]
[310180467,1704390672282,-500.0,0.00034246,2]
[310180468,1704390672292,-500.0,0.00034246,2]
[310180469,1704390672303,-500.0,0.00034246,2]
[310180470,1704390672313,-441.35093929,0.00034246,2]
[310180471,1704390672324,-500.0,0.00034246,2]
[310180472,1704390672335,-539.84,0.00034246,2]
[310180473,1704390672346,-500.0,0.00034246,2]
[310180474,1704390672356,-527.22,0.00034246,2]
[310180475,1704390672367,-500.0,0.00034246,2]
[310180476,1704390672377,-500.0,0.00034246,2]
[310180477,1704390672388,-500.0,0.00034246,2]
[310180478,1704390672398,-500.0,0.00034246,2]
[310180479,1704390672408,-500.0,0.00034246,2]
[310180480,1704390672419,-500.0,0.00034246,2]
[310180481,1704390672430,-500.0,0.00034246,2]
[310180482,1704390672442,-500.0,0.00034246,2]
[310180483,1704390672453,-674.84,0.00034246,2]
[310180484,1704390672463,-500.0,0.00034246,2]
[310180485,1704390672473,-503.61,0.00034246,2]
[310180486,1704390672484,-500.0,0.00034246,2]
[310180487,1704390672495,-645.86,0.00034246,2]
[310180488,1704390672509,-500.0,0.00034246,2]
[310180489,1704390672521,-500.0,0.00034246,2]
[310180490,1704390672533,-936.08,0.00034246,2]
[310180491,1704390672545,-347.5869342,0.00034246,2]
[310180492,1704390672557,-500.0,0.00034246,2]
[310180493,1704390672570,-500.0,0.00034246,2]
[310180494,1704390672583,-500.0,0.00034246,2]
[310180495,1704390672594,-500.0,0.00034246,2]
[310180496,1704390672606,-479.15686473,0.00034246,2]
[310180497,1704390672617,-500.0,0.00034246,2]
[310180498,1704390672629,-500.0,0.00034246,2]
[310180499,1704390672640,-500.0,0.00034246,2]
[310180500,1704390672650,-500.0,0.00034246,2]
[310180501,1704390672661,-500.0,0.00034246,2]
[310180502,1704390672672,-500.0,0.00034246,2]
[310180503,1704390672685,-500.0,0.00034246,2]
[310180504,1704390672696,-1562.75,0.00034246,2]
[310180505,1704390672707,-500.0,0.00034246,2]
[310180506,1704390672718,-500.0,0.00034246,2]
[310180507,1704390672729,-609.88,0.00034246,2]
[310180508,1704390672739,-617.22,0.00034246,2]
[310180509,1704390672750,-599.84328878,0.00034246,2]
[310180510,1704390672762,-500.0,0.00034246,2]
[310180511,1704390672775,-500.0,0.00034246,2]
[310180512,1704390672786,-500.0,0.00034246,2]
[310180513,1704390672797,-865.18,0.00034246,2]
[310180514,1704390672808,-500.0,0.00034246,2]
[310180515,1704390672820,-500.0,0.00034246,2]
[310180516,1704390672831,-715.32,0.00034246,2]
[310180517,1704390672842,-500.0,0.00034246,2]
[310180518,1704390672853,-500.0,0.00034246,2]
[310180519,1704390672865,-1738.62,0.00034246,2]
[310180520,1704390672876,-500.0,0.00034246,2]
[310180521,1704390672888,-500.0,0.00034246,2]
[310180522,1704390672899,-500.0,0.00034246,2]
[310180523,1704390672911,-942.91,0.00034246,2]
[310180524,1704390672922,-500.0,0.00034246,2]
[310180525,1704390672936,-1042.94,0.00034246,2]
[310180526,1704390672947,-500.0,0.00034246,2]
[310180527,1704390672957,-500.0,0.00034246,2]
[310180528,1704390672968,-3818.52,0.00034246,2]
[310180529,1704390672979,-500.0,0.00034246,2]
[310180530,1704390672991,-575.83,0.00034246,2]
[310180531,1704390673003,-665.59,0.00034246,2]
[310180532,1704390673014,-1372.69,0.00034246,2]
[310180533,1704390673025,-16745.67,0.00034246,2]
[310180534,1704390673036,-500.0,0.00034246,2]
[310180535,1704390673047,-500.0,0.00034246,2]
[310180536,1704390673057,-721.34,0.00034246,2]
[310180537,1704390673068,-3173.06,0.00034246,2]
[310180538,1704390673078,-500.0,0.00034246,2]
[310180539,1704390673088,-1815.37,0.00034246,2]
[310180540,1704390673099,-500.0,0.00034246,2]
[310180541,1704390673111,-500.0,0.00034246,2]
[310180542,1704390673122,-500.0,0.00034246,2]
[310180543,1704390673136,-500.0,0.00034246,2]
[310180544,1704390673146,-2530.3,0.00034246,2]
[310180545,1704390673157,-666.11,0.00034246,2]
[310180546,1704390673171,-500.0,0.00034246,2]
[310180547,1704390673183,-500.0,0.00034246,2]
[310180548,1704390673197,-1225.76,0.00034246,2]
[310180549,1704390673208,-500.0,0.00034246,2]
[310180550,1704390673221,-1638.37,0.00034246,2]
[310180551,1704390673233,-674.49,0.00034246,2]
[310180552,1704390673244,-1957.6,0.00034246,2]
[310180553,1704390673254,-500.0,0.00034246,2]
[310180554,1704390673266,-500.0,0.00034246,2]
[310180555,1704390673278,-500.0,0.00034246,2]
[310180556,1704390673290,-500.0,0.00034246,2]
[310180557,1704390673302,-1227.69,0.00034246,2]
[310180558,1704390673315,-500.0,0.00034246,2]
[310180559,1704390673585,-1115.6,0.00034246,2]
[310180560,1704390673597,-1502.1,0.00034246,2]
[310180561,1704390673608,-167.29009,0.00034246,2]
[310180562,1704390673619,-500.0,0.00034246,2]
[310180563,1704390673628,-500.0,0.00034246,2]
[310180564,1704390673639,-601.13,0.00034246,2]
[310180565,1704390673649,-500.0,0.00034246,2]
[310180566,1704390673658,-1095.01,0.00034246,2]
[310180567,1704390673679,-1112.32,0.00034246,2]
[310180568,1704390673689,-3635.49,0.00034246,2]
[310180569,1704390673699,-500.0,0.00034246,2]
[310180570,1704390673709,-500.0,0.00034246,2]
[310180571,1704390673719,-537.9623203,0.00034246,2]
[310180572,1704390673729,-683.22,0.00034246,2]
[310180573,1704390673741,-500.0,0.00034246,2]
[310180574,1704390673751,-908.85,0.00034246,2]
[310180575,1704390673761,-1548.81,0.00034246,2]
[310180576,1704390673770,-4115.94,0.00034246,2]
[310180577,1704390673780,-630.5,0.00034246,2]
[310180578,1704390673790,-602.19,0.00034246,2]
[310180579,1704390673800,-500.0,0.00034246,2]
[310180580,1704390673810,-500.0,0.00034246,2]
[310180581,1704390673819,-1531.01,0.00034246,2]
[310180582,1704390673829,-500.0,0.00034246,2]
[310180583,1704390673839,-1981.93,0.00034246,2]
[310180584,1704390673848,-1065.75,0.00034246,2]
[310180585,1704390673858,-587.25,0.00034246,2]
[310180586,1704390673868,-1067.69,0.00034246,2]
[310180587,1704390673878,-511.14,0.00034246,2]
[310180588,1704390673887,-500.0,0.00034246,2]
[310180589,1704390673896,-720.1,0.00034246,2]
[310180590,1704390673907,-1768.26,0.00034246,2]
[310180591,1704390673916,-6881.5,0.00034246,2]
[310180592,1704390673926,-500.0,0.00034246,2]
[310180593,1704390673937,-500.0,0.00034246,2]
[310180594,1704390673959,-2064.6,0.00034246,2]
[310180595,1704390673969,-1086.35,0.00034246,2]
[310180596,1704390673987,-1480.81,0.00034246,2]
[310180597,1704390673997,-526.27,0.00034246,2]
[310180598,1704390674008,-500.0,0.00034246,2]
[310180599,1704390674017,-500.0,0.00034246,2]
[310180600,1704390674027,-500.0,0.00034246,2]
[310180601,1704390674037,-819.26,0.00034246,2]
[310180602,1704390674050,-835.91,0.00034246,2]
[310180603,1704390674060,-532.1,0.00034246,2]
[310180604,1704390674069,-500.0,0.00034246,2]
[310180605,1704390674079,-801.4,0.00034246,2]
[310180606,1704390674089,-621.08,0.00034246,2]
[310180607,1704390674098,-507.88,0.00034246,2]
[310180608,1704390674111,-506.14484336,0.00034246,2]
[310180609,1704390674121,-6437.46,0.00034246,2]
[310180610,1704390674137,-500.0,0.00034246,2]
[310180611,1704390674146,-843.26,0.00034246,2]
[310180612,1704390674155,-593.76,0.00034246,2]
[310180613,1704390674164,-500.0,0.00034246,2]
[310180614,1704390674174,-1390.54,0.00034246,2]
[310180615,1704390674185,-1704.85,0.00034246,2]
[310180616,1704390674195,-500.0,0.00034246,2]
[310180617,1704390674204,-500.0,0.00034246,2]
[310180618,1704390674215,-500.0,0.00034246,2]
[310180619,1704390674225,-589.64,0.00034246,2]
[310180620,1704390674234,-500.0,0.00034246,2]
[310180621,1704390674244,-500.0,0.00034246,2]
[310180622,1704390674253,-500.0,0.00034246,2]
[310180623,1704390674264,-2804.91,0.00034246,2]
[310180624,1704390674273,-500.0,0.00034246,2]
[310180625,1704390674283,-500.0,0.00034246,2]
[310180626,1704390674292,-381.2366622,0.00034246,2]
[310180627,1704390674301,-500.0,0.00034246,2]
[310180628,1704390674311,-500.0,0.00034246,2]
[310180629,1704390674321,-1132.74,0.00034246,2]
[310180630,1704390674331,-500.0,0.00034246,2]
[310180631,1704390674340,-1027.11,0.00034246,2]
[310180632,1704390674350,-500.0,0.00034246,2]
[310180633,1704390674359,-3550.71,0.00034246,2]
[310180634,1704390674368,-500.0,0.00034246,2]
[310180635,1704390674378,-500.0,0.00034246,2]
[310180636,1704390674388,-500.0,0.00034246,2]
[310180637,1704390674397,-500.0,0.00034246,2]
[310180638,1704390674410,-1883.66,0.00034246,2]
[310180639,1704390674420,-1301.67,0.00034246,2]
[310180640,1704390674430,-569.76,0.00034246,2]
[310180641,1704390674449,-500.0,0.00034246,2]
[310180642,1704390674459,-980.49,0.00034246,2]
[310180643,1704390674469,-500.0,0.00034246,2]
[310180644,1704390674478,-1800.67,0.00034246,2]
[310180645,1704390674488,-1779.82,0.00034246,2]
[310180646,1704390674497,-2066.07,0.00034246,2]
[310180647,1704390674507,-500.0,0.00034246,2]
[310180648,1704390674516,-500.0,0.00034246,2]
[310180649,1704390674537,-500.0,0.00034246,2]
[310180650,1704390674550,-933.35,0.00034246,2]
[310180651,1704390674561,-1036.48,0.00034246,2]
[310180652,1704390674573,-796.42,0.00034246,2]
[310180653,1704390674583,-500.0,0.00034246,2]
[310180654,1704390674593,-500.0,0.00034246,2]
[310180655,1704390674603,-859.77,0.00034246,2]
[310180656,1704390674613,-500.0,0.00034246,2]
[310180657,1704390674623,-500.0,0.00034246,2]
[310180658,1704390674633,-3208.71,0.00034246,2]
[310180659,1704390674644,-500.0,0.00034246,2]
[310180660,1704390674655,-885.63,0.00034246,2]
[310180661,1704390674666,-500.0,0.00034246,2]
[310180662,1704390674676,-725.61,0.00034246,2]
[310180663,1704390674688,-500.0,0.00034246,2]
[310180664,1704390674698,-4028.33,0.00034246,2]
[310180665,1704390674707,-500.0,0.00034246,2]
[310180666,1704390674717,-947.57,0.00034246,2]
[310180667,1704390674727,-711.27,0.00034246,2]
[310180668,1704390674736,-645.27,0.00034246,2]
[310180669,1704390674746,-584.33116538,0.00034246,2]
[310180670,1704390674756,-1162.29,0.00034246,2]
[310180671,1704390674766,-1792.09,0.00034246,2]
[310180672,1704390674776,-500.0,0.00034246,2]
[310180673,1704390674786,-500.0,0.00034246,2]
[310180674,1704390674796,-538.41815601,0.00034246,2]
[310180675,1704390674805,-3077.15,0.00034246,2]
[310180676,1704390674815,-500.0,0.00034246,2]
[310180677,1704390674824,-500.0,0.00034246,2]
[310180678,1704390674834,-1099.16,0.00034246,2]
[310180679,1704390674844,-500.0,0.00034246,2]
[310180680,1704390674854,-500.0,0.00034246,2]
[310180681,1704390674864,-500.0,0.00034246,2]
[310180682,1704390674874,-500.0,0.00034246,2]
[310180683,1704390674884,-4753.61,0.00034246,2]
[310180684,1704390674893,-508.630008,0.00034246,7]
[310180685,1704390674903,-508.630008,0.00034246,7]
[310180686,1704390674913,-739.27549041,0.00034249,2]
[310180687,1704390674922,-157.4003949,0.00034249,2]
[310180688,1704390674935,-248.21973492,0.00034249,2]
[310180689,1704390674944,-1427.19110698,0.00034249,2]
[310180690,1704390674953,-199.09,0.00034249,2]
[310180691,1704390674964,-150.0,0.00034256,2]
[310180692,1704390674974,-1500.0,0.00034278,2]
[310180693,1704390674984,-388.0,0.00034305,2]
[310180694,1704390674994,-1301.0,0.00034305,2]
[310180695,1704390675004,-2218.428,0.00034305,2]
[310180696,1704390675014,-832.0,0.00034305,2]
[310180697,1704390675024,-942.0,0.00034305,2]
[310180698,1704390675034,-1846.0,0.00034305,2]
[310180699,1704390675043,-451.235,0.00034305,2]
[310180700,1704390675053,-384.183,0.00034305,2]
[310180701,1704390675063,-1234.0,0.00034305,2]
[310180702,1704390675073,-1157.0,0.00034305,2]
[310180703,1704390675084,-733.124,0.00034305,2]
[310180704,1704390675094,-475.124,0.00034305,2]
[310180705,1704390675104,-1145.894,0.00034305,2]
[310180706,1704390675114,-1925.0,0.00034305,2]
[310180707,1704390675125,-463.655,0.00034305,2]
[310180708,1704390675136,-406.505,0.00034305,2]
[310180709,1704390675146,-317.0,0.00034305,2]
[310180710,1704390675156,-150.0,0.00034305,2]
[310180711,1704390675165,-150.208,0.00034305,2]
[310180712,1704390675177,-153.0,0.00034305,2]
[310180713,1704390675189,-150.0,0.00034305,2]
[310180714,1704390675198,-150.686,0.00034305,2]
[310180715,1704390675208,-150.0,0.00034309,2]
[310180716,1704390675218,-150.0,0.00034313,2]
[310180717,1704390675227,-150.0,0.00034317,2]
[310180718,1704390675237,-150.0,0.00034336,2]
[310180719,1704390675247,-150.0,0.00034346,2]
[310180720,1704390675257,-150.0,0.00034352,2]
[310180721,1704390675267,-360.0,0.00034378,2]
[310180722,1704390675277,-1500.0,0.00034382,2]
[310180723,1704390675286,-150.0,0.00034385,2]
[310180724,1704390675296,-150.0,0.00034391,2]
[310180725,1704390675305,-4372.51596475,0.00034395,6]
[310180726,1704390675315,-1500.0,0.00034397,2]
[310180727,1704390675325,-300.0,0.000344,2]
[310180728,1704390675334,-191.14908563,0.00034402,2]
[310180729,1704390675343,-1500.0,0.00034403,2]
[310180730,1704390675352,-199.09,0.00034417,2]
[310180731,1704390675362,-150.0,0.00034418,2]
[310180732,1704390675372,-1500.0,0.00034423,2]
[310180733,1704390675382,-150.0,0.0003443,2]
[310180734,1704390675392,-1500.0,0.00034433,2]
[310180735,1704390675402,-1500.0,0.00034434,2]
[310180736,1704390675412,-150.0,0.00034438,2]
[310180737,1704390675424,-300.0,0.00034443,2]
[310180738,1704390675438,-150.0,0.00034444,2]
[310180739,1704390675448,-151.6990566,0.00034447,2]
[310180740,1704390675469,-150.0,0.00034475,2]
[310180741,1704390675479,-1003.74,0.0003449,2]
[310180742,1704390675502,-150.0,0.000345,23]
[310180743,1704390675512,-500.0,0.00034518,2]
[310180744,1704390675530,-500.0,0.00034518,2]
[310180745,1704390675540,-1207.47,0.00034518,2]
[310180746,1704390675554,-2681.4,0.00034518,2]
[310180747,1704390675564,-416.43865149,0.00034519,30]
[310180748,1704390675591,-1641.98044309,0.00034519,2]
[310180749,1704390675601,-1500.0,0.00034519,2]
[310180750,1704390675618,-500.0,0.0003452,2]
[310180751,1704390675630,-500.0,0.0003452,2]
[310180752,1704390675642,-500.0,0.0003452,2]
[310180753,1704390675651,-500.0,0.0003452,2]
[310180754,1704390675659,-500.0,0.0003452,2]
[310180755,1704390675668,-486.34610255,0.0003452,2]
[310180756,1704390675678,-505.49720362,0.0003452,2]
[310180757,1704390675687,-500.0,0.0003452,2]
[310180758,1704390675696,-500.0,0.0003452,2]
[310180759,1704390675704,-529.9,0.0003452,2]
[310180760,1704390675713,-591.73,0.0003452,2]
[310180761,1704390675722,-500.0,0.0003452,2]
[310180762,1704390675731,-500.0,0.0003452,2]
[310180763,1704390675740,-512.75648819,0.0003452,2]
[310180764,1704390675749,-218.93611319,0.0003452,2]
[310180765,1704390675758,-500.0,0.0003452,2]
[310180766,1704390675767,-500.0,0.0003452,2]
[310180767,1704390675776,-500.0,0.0003452,2]
[310180768,1704390675786,-500.0,0.0003452,2]
[310180769,1704390675795,-291.71,0.0003452,2]
[310180770,1704390675804,-500.0,0.0003452,2]
[310180771,1704390675814,-433.59331723,0.0003452,2]
[310180772,1704390675823,-500.0,0.0003452,2]
[310180773,1704390675832,-500.0,0.0003452,2]
[310180774,1704390675841,-500.0,0.0003452,2]
[310180775,1704390675850,-500.0,0.0003452,2]
[310180776,1704390675859,-500.0,0.0003452,2]
[310180777,1704390675868,-902.69,0.0003452,2]
[310180778,1704390675877,-500.0,0.0003452,2]
[310180779,1704390675886,-500.0,0.0003452,2]
[310180780,1704390675896,-500.0,0.0003452,2]
[310180781,1704390675905,-500.0,0.0003452,2]
[310180782,1704390675914,-500.0,0.0003452,2]
[310180783,1704390675924,-392.94020978,0.0003452,2]
[310180784,1704390675933,-500.0,0.0003452,2]
[310180785,1704390675942,-981.17,0.0003452,2]
[310180786,1704390675951,-500.0,0.0003452,2]
[310180787,1704390675961,-500.0,0.0003452,2]
[310180788,1704390675970,-372.19093263,0.0003452,2]
[310180789,1704390675979,-500.0,0.0003452,2]
[310180790,1704390675988,-386.58426782,0.0003452,2]
[310180791,1704390675997,-500.0,0.0003452,2]
[310180792,1704390676007,-500.0,0.0003452,2]
[310180793,1704390676016,-500.0,0.0003452,2]
[310180794,1704390676024,-500.0,0.0003452,2]
[310180795,1704390676033,-500.0,0.0003452,2]
[310180796,1704390676042,-500.0,0.0003452,2]
[310180797,1704390676051,-500.0,0.0003452,2]
[310180798,1704390676060,-500.0,0.0003452,2]
[310180799,1704390676069,-500.0,0.0003452,2]
[310180800,1704390676078,-610.0,0.0003452,2]
[310180801,1704390676088,-500.0,0.0003452,2]
[310180802,1704390676097,-500.0,0.0003452,2]
[310180803,1704390676109,-648.22798388,0.0003452,2]
[310180804,1704390676119,-500.0,0.0003452,2]
[310180805,1704390676133,-500.0,0.0003452,2]
[310180806,1704390676142,-500.0,0.0003452,2]
[310180807,1704390676152,-500.0,0.0003452,2]
[310180808,1704390676161,-500.0,0.0003452,2]
[310180809,1704390676172,-500.0,0.0003452,2]
[310180810,1704390676182,-584.15,0.0003452,2]
[310180811,1704390676191,-500.0,0.0003452,2]
[310180812,1704390676201,-521.08,0.0003452,2]
[310180813,1704390676210,-500.0,0.0003452,2]
[310180814,1704390676220,-499.08410973,0.0003452,2]
[310180815,1704390676229,-500.0,0.0003452,2]
[310180816,1704390676238,-500.0,0.0003452,2]
[310180817,1704390676248,-579.94,0.0003452,2]
[310180818,1704390676257,-500.0,0.0003452,2]
[310180819,1704390676266,-500.0,0.0003452,2]
[310180820,1704390676275,-500.0,0.0003452,2]
[310180821,1704390676285,-151.0,0.0003452,7]
[310180822,1704390676294,-500.0,0.0003452,2]
[310180823,1704390676303,-151.0,0.0003452,7]
[310180824,1704390676312,-500.0,0.0003452,2]
[310180825,1704390676322,-500.0,0.0003452,2]
[310180826,1704390676331,-500.0,0.0003452,2]
[310180827,1704390676340,-573.0748951,0.0003452,2]
[310180828,1704390676350,-500.0,0.0003452,2]
[310180829,1704390676358,-500.0,0.0003452,2]
[310180830,1704390676368,-500.0,0.0003452,2]
[310180831,1704390676377,-500.0,0.0003452,2]
[310180832,1704390676386,-500.0,0.0003452,2]
[310180833,1704390676395,-500.0,0.0003452,2]
[310180834,1704390676404,-500.0,0.0003452,2]
[310180835,1704390676413,-500.0,0.0003452,2]
[310180836,1704390676422,-500.0,0.0003452,2]
[310180837,1704390676432,-500.0,0.0003452,2]
[310180838,1704390676441,-500.0,0.0003452,2]
[310180839,1704390676450,-150.0,0.0003452,2]
[310180840,1704390676460,-500.0,0.0003452,2]
[310180841,1704390676469,-500.0,0.0003452,2]
[310180842,1704390676478,-500.0,0.0003452,2]
[310180843,1704390676488,-500.0,0.0003452,2]
[310180844,1704390676497,-539.84,0.0003452,2]
[310180845,1704390676506,-500.0,0.0003452,2]
[310180846,1704390676515,-527.22,0.0003452,2]
[310180847,1704390676524,-500.0,0.0003452,2]
[310180848,1704390676534,-500.0,0.0003452,2]
[310180849,1704390676543,-500.0,0.0003452,2]
[310180850,1704390676552,-500.0,0.0003452,2]
[310180851,1704390676563,-232.63093579,0.0003452,2]
[310180852,1704390676573,-634.94450819,0.0003452,2]
[310180853,1704390676583,-500.0,0.0003452,2]
[310180854,1704390676593,-355.56,0.0003452,2]
[310180855,1704390676603,-674.84,0.0003452,2]
[310180856,1704390676612,-500.0,0.0003452,2]
[310180857,1704390676621,-503.61,0.0003452,2]
[310180858,1704390676631,-500.0,0.0003452,2]
[310180859,1704390676640,-500.0,0.0003452,2]
[310180860,1704390676650,-276.36,0.0003452,2]
[310180861,1704390676659,-936.08,0.0003452,2]
[310180862,1704390676668,-500.0,0.0003452,2]
[310180863,1704390676678,-500.0,0.0003452,2]
[310180864,1704390676691,-500.0,0.0003452,2]
[310180865,1704390676700,-500.0,0.0003452,2]
[310180866,1704390676709,-500.0,0.0003452,2]
[310180867,1704390676719,-500.0,0.0003452,2]
[310180868,1704390676728,-500.0,0.0003452,2]
[310180869,1704390676737,-321.02533,0.0003452,7]
[310180870,1704390676747,-185.21197187,0.0003452,2]
[310180871,1704390676757,-510.33164753,0.0003452,2]
[310180872,1704390676766,-321.02533,0.0003452,7]
[310180873,1704390676775,-1562.75,0.0003452,2]
[310180874,1704390676785,-500.0,0.0003452,2]
[310180875,1704390676794,-225.13347517,0.0003452,2]
[310180876,1704390676805,-609.88,0.0003452,2]
[310180877,1704390676815,-617.22,0.0003452,2]
[310180878,1704390676826,-500.0,0.0003452,2]
[310180879,1704390676835,-440.14,0.0003452,2]
[310180880,1704390676845,-360.50867953,0.0003452,2]
[310180881,1704390676854,-865.18,0.0003452,2]
[310180882,1704390676865,-500.0,0.0003452,2]
[310180883,1704390676874,-500.0,0.0003452,2]
[310180884,1704390676885,-715.32,0.0003452,2]
[310180885,1704390676896,-500.0,0.0003452,2]
[310180886,1704390676906,-500.0,0.0003452,2]
[310180887,1704390676917,-1738.62,0.0003452,2]
[310180888,1704390676927,-500.0,0.0003452,2]
[310180889,1704390676941,-500.0,0.0003452,2]
[310180890,1704390676951,-500.0,0.0003452,2]
[310180891,1704390676962,-942.91,0.0003452,2]
[310180892,1704390676972,-1042.94,0.0003452,2]
[310180893,1704390676982,-500.0,0.0003452,2]
[310180894,1704390676992,-500.0,0.0003452,2]
[310180895,1704390677002,-3818.52,0.0003452,2]
[310180896,1704390677012,-500.0,0.0003452,2]
[310180897,1704390677021,-575.83,0.0003452,2]
[310180898,1704390677032,-665.59,0.0003452,2]